[Event "*** Titled Tuesday Blitz"]
[Site "Chess.com"]
[Date "2020.05.05"]
[Round "4"]
[White "oneshot007"]
[Black "madalin18"]
[Result "1-0"]
[WhiteElo "2403"]
[BlackElo "2145"]
[TimeControl "180+1"]
[EndTime "10:37:53 PDT"]
[Termination "oneshot007 won by checkmate"]

1. e4 {[%clk 0:03:00.9]} 1... c5 {[%clk 0:02:59.6]} 2. Nf3 {[%clk 0:03:00.6]}
2... d6 {[%clk 0:02:59.9]} 3. d4 {[%clk 0:03:00.4]} 3... cxd4 {[%clk 0:03:00.2]}
4. Nxd4 {[%clk 0:03:01.3]} 4... Nf6 {[%clk 0:03:00.2]} 5. Nc3 {[%clk 0:03:01.6]}
5... a6 {[%clk 0:03:00.1]} 6. h4 {[%clk 0:03:01.8]} 6... Nc6 {[%clk 0:02:58]} 7.
Be3 {[%clk 0:03:00.5]} 7... Bd7 {[%clk 0:02:43.3]} 8. Be2 {[%clk 0:02:59.5]}
8... Rc8 {[%clk 0:02:31]} 9. g4 {[%clk 0:02:55.4]} 9... h5 {[%clk 0:02:25.6]}
10. gxh5 {[%clk 0:02:40.3]} 10... Qa5 {[%clk 0:02:22.6]} 11. Nb3 {[%clk
0:02:38.2]} 11... Qc7 {[%clk 0:02:03.5]} 12. Bg5 {[%clk 0:02:32.6]} 12... e6
{[%clk 0:01:55.4]} 13. h6 {[%clk 0:02:20.3]} 13... Ne5 {[%clk 0:01:24]} 14. Qd2
{[%clk 0:01:43.3]} 14... Nc4 {[%clk 0:01:23.3]} 15. Bxc4 {[%clk 0:01:42.8]}
15... Qxc4 {[%clk 0:01:22.9]} 16. O-O-O {[%clk 0:01:29.9]} 16... Nxe4 {[%clk
0:01:22.4]} 17. Nxe4 {[%clk 0:01:29.7]} 17... Qxe4 {[%clk 0:01:21.9]} 18. Rhe1
{[%clk 0:01:29.8]} 18... Qa4 {[%clk 0:01:19]} 19. hxg7 {[%clk 0:01:26.2]} 19...
Bxg7 {[%clk 0:01:17.3]} 20. Qxd6 {[%clk 0:01:25.9]} 20... Qc6 {[%clk 0:01:05]}
21. Qe7# {[%clk 0:01:24.7]} 1-0

[Event "*** Titled Tuesday Blitz"]
[Site "Chess.com"]
[Date "2020.05.05"]
[Round "4"]
[White "powermove"]
[Black "ViktoriyaTarasova"]
[Result "1-0"]
[WhiteElo "1658"]
[BlackElo "2153"]
[TimeControl "180+1"]
[EndTime "10:37:57 PDT"]
[Termination "powermove won by resignation"]

1. Nf3 {[%clk 0:03:00.9]} 1... Nf6 {[%clk 0:02:58.7]} 2. g3 {[%clk 0:03:00.6]}
2... b6 {[%clk 0:02:57.9]} 3. Bg2 {[%clk 0:03:00.2]} 3... Bb7 {[%clk 0:02:58.4]}
4. O-O {[%clk 0:03:00.1]} 4... c5 {[%clk 0:02:57.8]} 5. d3 {[%clk 0:02:59.8]}
5... e6 {[%clk 0:02:57.2]} 6. Nbd2 {[%clk 0:02:59.7]} 6... Be7 {[%clk
0:02:57.7]} 7. e4 {[%clk 0:02:59.6]} 7... d6 {[%clk 0:02:58.1]} 8. Qe2 {[%clk
0:02:56]} 8... O-O {[%clk 0:02:58]} 9. h3 {[%clk 0:02:55.3]} 9... Nbd7 {[%clk
0:02:58.5]} 10. Re1 {[%clk 0:02:53]} 10... Qc7 {[%clk 0:02:58.5]} 11. Nf1 {[%clk
0:02:51.3]} 11... Rfe8 {[%clk 0:02:56.6]} 12. a4 {[%clk 0:02:41.3]} 12... a6
{[%clk 0:02:54.3]} 13. Bd2 {[%clk 0:02:37.5]} 13... Rad8 {[%clk 0:02:53.6]} 14.
Nh4 {[%clk 0:02:09.2]} 14... Bf8 {[%clk 0:02:49.8]} 15. f4 {[%clk 0:02:07.3]}
15... g6 {[%clk 0:02:46.3]} 16. g4 {[%clk 0:02:05.4]} 16... Bg7 {[%clk
0:02:38.2]} 17. c3 {[%clk 0:02:02.7]} 17... h5 {[%clk 0:02:31.6]} 18. Ng3 {[%clk
0:01:56.2]} 18... hxg4 {[%clk 0:02:30.2]} 19. hxg4 {[%clk 0:01:54]} 19... Nh7
{[%clk 0:02:25.6]} 20. Rad1 {[%clk 0:01:20.6]} 20... d5 {[%clk 0:02:24]} 21. e5
{[%clk 0:01:16.9]} 21... g5 {[%clk 0:02:21.4]} 22. Nf3 {[%clk 0:01:06.1]} 22...
gxf4 {[%clk 0:02:17]} 23. Bxf4 {[%clk 0:01:05.9]} 23... f6 {[%clk 0:02:17.6]}
24. exf6 {[%clk 0:00:59.6]} 24... Qxf4 {[%clk 0:02:16]} 25. fxg7 {[%clk
0:00:59.1]} 25... Kxg7 {[%clk 0:02:15.8]} 26. Nh5+ {[%clk 0:00:52.4]} 26... Kh8
{[%clk 0:02:12.6]} 27. Nxf4 {[%clk 0:00:52]} 27... e5 {[%clk 0:02:11.4]} 28.
Ng6+ {[%clk 0:00:46.3]} 28... Kg7 {[%clk 0:02:10.5]} 29. Ngxe5 {[%clk
0:00:46.1]} 29... Nxe5 {[%clk 0:02:08.3]} 30. Nxe5 {[%clk 0:00:45.3]} 1-0

[Event "*** Titled Tuesday Blitz"]
[Site "Chess.com"]
[Date "2020.05.05"]
[Round "4"]
[White "Colombiano07"]
[Black "MFguimaraes"]
[Result "0-1"]
[WhiteElo "2163"]
[BlackElo "2409"]
[TimeControl "180+1"]
[EndTime "10:38:00 PDT"]
[Termination "MFguimaraes won by resignation"]

1. d4 {[%clk 0:02:44.1]} 1... Nf6 {[%clk 0:02:59.6]} 2. Nf3 {[%clk 0:02:43.5]}
2... d5 {[%clk 0:02:59.7]} 3. e3 {[%clk 0:02:38.5]} 3... c6 {[%clk 0:02:58.5]}
4. Bd3 {[%clk 0:02:29.1]} 4... Bg4 {[%clk 0:02:56.6]} 5. Nbd2 {[%clk 0:02:21.4]}
5... Nbd7 {[%clk 0:02:55.8]} 6. O-O {[%clk 0:02:10.1]} 6... e5 {[%clk
0:02:54.4]} 7. dxe5 {[%clk 0:01:58.9]} 7... Nxe5 {[%clk 0:02:54.1]} 8. Be2
{[%clk 0:01:59.8]} 8... Bd6 {[%clk 0:02:44.8]} 9. Nxe5 {[%clk 0:01:49.3]} 9...
Bxe2 {[%clk 0:02:44.4]} 10. Nxf7 {[%clk 0:01:49.6]} 10... Bxd1 {[%clk
0:02:43.5]} 11. Nxd8 {[%clk 0:01:49.4]} 11... Bxc2 {[%clk 0:02:35.2]} 12. Nxb7
{[%clk 0:01:47.1]} 12... Bb4 {[%clk 0:02:24.5]} 13. a3 {[%clk 0:01:29.4]} 13...
Rb8 {[%clk 0:02:24.5]} 14. axb4 {[%clk 0:01:28.9]} 14... Rxb7 {[%clk 0:02:24.7]}
15. Nf3 {[%clk 0:01:15.2]} 15... O-O {[%clk 0:02:23.6]} 16. Bd2 {[%clk
0:01:11.7]} 16... Ne4 {[%clk 0:02:23.3]} 17. Bc3 {[%clk 0:01:11.8]} 17... Bd3
{[%clk 0:02:14.1]} 18. Nd4 {[%clk 0:01:03.4]} 18... Bxf1 {[%clk 0:02:03.6]} 19.
Rxf1 {[%clk 0:01:04.3]} 19... Nxc3 {[%clk 0:02:01.9]} 20. bxc3 {[%clk
0:01:00.9]} 20... Rc8 {[%clk 0:01:59.2]} 21. Ra1 {[%clk 0:00:51.1]} 21... c5
{[%clk 0:01:56.8]} 22. g3 {[%clk 0:00:41.1]} 22... cxd4 {[%clk 0:01:56.4]} 0-1

[Event "*** Titled Tuesday Blitz"]
[Site "Chess.com"]
[Date "2020.05.05"]
[Round "4"]
[White "Wolverine_master"]
[Black "BillCoe"]
[Result "1-0"]
[WhiteElo "2212"]
[BlackElo "2009"]
[TimeControl "180+1"]
[EndTime "10:38:04 PDT"]
[Termination "Wolverine_master won by resignation"]

1. e4 {[%clk 0:03:00.9]} 1... c5 {[%clk 0:02:59.8]} 2. Nf3 {[%clk 0:03:00.6]}
2... e6 {[%clk 0:03:00.3]} 3. d4 {[%clk 0:03:01]} 3... cxd4 {[%clk 0:03:01]} 4.
Nxd4 {[%clk 0:02:59]} 4... a6 {[%clk 0:03:01.9]} 5. Bd3 {[%clk 0:02:58.6]} 5...
Qc7 {[%clk 0:03:02.4]} 6. O-O {[%clk 0:02:58.5]} 6... Nf6 {[%clk 0:03:02.8]} 7.
f4 {[%clk 0:02:58.4]} 7... d6 {[%clk 0:03:02.4]} 8. Kh1 {[%clk 0:02:57]} 8...
Be7 {[%clk 0:03:02.8]} 9. Qe2 {[%clk 0:02:54.4]} 9... Nbd7 {[%clk 0:03:00.1]}
10. c3 {[%clk 0:02:52.6]} 10... O-O {[%clk 0:02:58.7]} 11. Be3 {[%clk
0:02:52.2]} 11... b5 {[%clk 0:02:58.8]} 12. Nd2 {[%clk 0:02:52]} 12... Bb7
{[%clk 0:02:57.4]} 13. Bc2 {[%clk 0:02:47.7]} 13... Nc5 {[%clk 0:02:51.3]} 14.
Bf2 {[%clk 0:02:36.1]} 14... d5 {[%clk 0:02:50.7]} 15. e5 {[%clk 0:02:35.8]}
15... Nfe4 {[%clk 0:02:49.4]} 16. Nxe4 {[%clk 0:02:34.9]} 16... Nxe4 {[%clk
0:02:50.3]} 17. Bxe4 {[%clk 0:02:29.1]} 17... dxe4 {[%clk 0:02:51.2]} 18. Bg3
{[%clk 0:02:29.8]} 18... Rac8 {[%clk 0:02:43.8]} 19. f5 {[%clk 0:02:29.8]} 19...
Bd5 {[%clk 0:02:26.6]} 20. f6 {[%clk 0:02:27.4]} 20... Rfd8 {[%clk 0:02:17.1]}
21. fxe7 {[%clk 0:02:15.2]} 21... Qxe7 {[%clk 0:02:16.3]} 22. Qh5 {[%clk
0:02:13.6]} 22... b4 {[%clk 0:02:12.7]} 23. Bh4 {[%clk 0:02:08.1]} 23... Qb7
{[%clk 0:02:09.6]} 24. Bxd8 {[%clk 0:02:07]} 24... Rxd8 {[%clk 0:02:10.5]} 25.
Rac1 {[%clk 0:01:59.4]} 25... e3 {[%clk 0:02:04.2]} 26. Qe2 {[%clk 0:01:58.9]}
26... bxc3 {[%clk 0:01:59.7]} 27. bxc3 {[%clk 0:01:53.7]} 27... h6 {[%clk
0:01:55.3]} 28. Rc2 {[%clk 0:01:52.4]} 28... Rc8 {[%clk 0:01:47.6]} 29. Qxe3
{[%clk 0:01:50.9]} 29... Be4 {[%clk 0:01:43.8]} 30. Rcf2 {[%clk 0:01:50.6]}
30... Rc7 {[%clk 0:01:41.9]} 31. Nb3 {[%clk 0:01:38]} 31... Qd5 {[%clk 0:01:38]}
32. Qd4 {[%clk 0:01:35.9]} 32... Bd3 {[%clk 0:01:34.2]} 33. Qxd5 {[%clk
0:01:31.1]} 33... exd5 {[%clk 0:01:35.1]} 34. Rc1 {[%clk 0:01:31.1]} 34... Re7
{[%clk 0:01:32.6]} 35. Rd2 {[%clk 0:01:29.5]} 35... Bc4 {[%clk 0:01:32.2]} 36.
Na5 {[%clk 0:01:24.4]} 36... Rxe5 {[%clk 0:01:30.6]} 37. Nxc4 {[%clk 0:01:24.1]}
37... dxc4 {[%clk 0:01:31.5]} 38. Rd4 {[%clk 0:01:23.9]} 1-0

[Event "*** Titled Tuesday Blitz"]
[Site "Chess.com"]
[Date "2020.05.05"]
[Round "4"]
[White "Malysch"]
[Black "m-garcett"]
[Result "1-0"]
[WhiteElo "2379"]
[BlackElo "2036"]
[TimeControl "180+1"]
[EndTime "10:38:09 PDT"]
[Termination "Malysch won by resignation"]

1. d4 {[%clk 0:03:00.9]} 1... Nf6 {[%clk 0:02:55.5]} 2. c4 {[%clk 0:03:01.8]}
2... g6 {[%clk 0:02:54.6]} 3. g3 {[%clk 0:03:01.9]} 3... Bg7 {[%clk 0:02:53]} 4.
Bg2 {[%clk 0:03:02.4]} 4... d6 {[%clk 0:02:53.5]} 5. Nf3 {[%clk 0:03:02.8]} 5...
O-O {[%clk 0:02:53.8]} 6. O-O {[%clk 0:03:03.2]} 6... Nbd7 {[%clk 0:02:53.7]} 7.
Nc3 {[%clk 0:03:03.6]} 7... e5 {[%clk 0:02:47.6]} 8. e4 {[%clk 0:03:03.8]} 8...
c6 {[%clk 0:02:35.3]} 9. h3 {[%clk 0:03:02.5]} 9... Qb6 {[%clk 0:02:34.4]} 10.
Re1 {[%clk 0:03:01.5]} 10... exd4 {[%clk 0:02:28.9]} 11. Nxd4 {[%clk 0:03:02.4]}
11... Nc5 {[%clk 0:02:26.8]} 12. Nb3 {[%clk 0:02:53.9]} 12... Nxb3 {[%clk
0:02:19.5]} 13. axb3 {[%clk 0:02:54.8]} 13... Re8 {[%clk 0:02:13.8]} 14. Be3
{[%clk 0:02:53.8]} 14... Qc7 {[%clk 0:02:13.4]} 15. Qc2 {[%clk 0:02:50.2]} 15...
a5 {[%clk 0:02:10.6]} 16. Rad1 {[%clk 0:02:39.8]} 16... Be6 {[%clk 0:01:45.5]}
17. f4 {[%clk 0:02:38.4]} 17... a4 {[%clk 0:01:33.2]} 18. Nxa4 {[%clk
0:02:32.5]} 18... Nh5 {[%clk 0:01:26.8]} 19. Kh2 {[%clk 0:02:29]} 19... Qd7
{[%clk 0:01:03.5]} 20. Nb6 {[%clk 0:02:24.7]} 20... Qe7 {[%clk 0:01:00.5]} 21.
Nxa8 {[%clk 0:02:23.8]} 21... Rxa8 {[%clk 0:01:01.4]} 22. Qd2 {[%clk 0:02:16.4]}
22... Rd8 {[%clk 0:00:45.6]} 23. e5 {[%clk 0:02:14.4]} 23... d5 {[%clk
0:00:39.8]} 24. cxd5 {[%clk 0:02:01.8]} 24... Bxd5 {[%clk 0:00:38]} 25. g4
{[%clk 0:02:00.1]} 1-0

[Event "*** Titled Tuesday Blitz"]
[Site "Chess.com"]
[Date "2020.05.05"]
[Round "4"]
[White "Akhayan"]
[Black "AttilaTurzo"]
[Result "1-0"]
[WhiteElo "2322"]
[BlackElo "2493"]
[TimeControl "180+1"]
[EndTime "10:38:12 PDT"]
[Termination "Akhayan won by resignation"]

1. d4 {[%clk 0:03:00.9]} 1... Nf6 {[%clk 0:02:59.7]} 2. Nf3 {[%clk 0:03:00.8]}
2... e6 {[%clk 0:02:59.9]} 3. g3 {[%clk 0:03:00.6]} 3... c5 {[%clk 0:02:52.7]}
4. Bg2 {[%clk 0:03:00.2]} 4... cxd4 {[%clk 0:02:50.2]} 5. Nxd4 {[%clk
0:03:00.3]} 5... Be7 {[%clk 0:02:46.6]} 6. O-O {[%clk 0:03:00.2]} 6... O-O
{[%clk 0:02:47.1]} 7. c4 {[%clk 0:03:00.2]} 7... a6 {[%clk 0:02:47.2]} 8. Nc3
{[%clk 0:03:00.1]} 8... Qc7 {[%clk 0:02:43.1]} 9. Bf4 {[%clk 0:02:50.9]} 9... d6
{[%clk 0:02:35.5]} 10. Nb3 {[%clk 0:02:43.8]} 10... Nbd7 {[%clk 0:02:14.8]} 11.
Rc1 {[%clk 0:02:42.6]} 11... Rb8 {[%clk 0:02:11.2]} 12. c5 {[%clk 0:02:39.4]}
12... Nxc5 {[%clk 0:02:07.7]} 13. Nxc5 {[%clk 0:02:38.9]} 13... Qxc5 {[%clk
0:02:08.6]} 14. Nd5 {[%clk 0:02:33.3]} 14... Qxd5 {[%clk 0:01:48.4]} 15. Bxd5
{[%clk 0:02:31.6]} 15... Nxd5 {[%clk 0:01:49.3]} 16. Bd2 {[%clk 0:02:27.8]}
16... Bd7 {[%clk 0:01:42.3]} 17. e4 {[%clk 0:02:26.7]} 17... Nf6 {[%clk
0:01:41.4]} 18. Re1 {[%clk 0:02:17.6]} 18... Bc6 {[%clk 0:01:38.5]} 19. Bc3
{[%clk 0:02:17.7]} 19... Nxe4 {[%clk 0:01:30.4]} 20. Rxe4 {[%clk 0:02:13.3]}
20... Bxe4 {[%clk 0:01:30.2]} 21. Qd4 {[%clk 0:02:12.6]} 21... Bf6 {[%clk
0:01:02.4]} 22. Qxe4 {[%clk 0:02:11.2]} 22... d5 {[%clk 0:01:02.6]} 23. Qg4
{[%clk 0:01:59]} 23... Rbc8 {[%clk 0:00:55.8]} 24. Bxf6 {[%clk 0:01:48]} 24...
Rxc1+ {[%clk 0:00:55.3]} 25. Kg2 {[%clk 0:01:48.2]} 25... g6 {[%clk 0:00:56.2]}
26. Qg5 {[%clk 0:01:47.3]} 26... Rfc8 {[%clk 0:00:42]} 27. Qh6 {[%clk
0:01:45.2]} 1-0

[Event "*** Titled Tuesday Blitz"]
[Site "Chess.com"]
[Date "2020.05.05"]
[Round "4"]
[White "Azoulas1"]
[Black "Dr_Thomas_Quilter"]
[Result "1-0"]
[WhiteElo "1906"]
[BlackElo "2118"]
[TimeControl "180+1"]
[EndTime "10:38:18 PDT"]
[Termination "Azoulas1 won by resignation"]

1. e4 {[%clk 0:03:00.9]} 1... c5 {[%clk 0:02:55.2]} 2. Nf3 {[%clk 0:02:59.7]}
2... d6 {[%clk 0:02:47.9]} 3. d4 {[%clk 0:02:59]} 3... cxd4 {[%clk 0:02:42.5]}
4. Nxd4 {[%clk 0:02:58.8]} 4... Nf6 {[%clk 0:02:43.1]} 5. Nc3 {[%clk 0:02:58.1]}
5... a6 {[%clk 0:02:39.8]} 6. Bg5 {[%clk 0:02:56.6]} 6... Qa5 {[%clk 0:02:34.5]}
7. Bxf6 {[%clk 0:02:52]} 7... gxf6 {[%clk 0:02:34.1]} 8. Bc4 {[%clk 0:02:51.4]}
8... b5 {[%clk 0:02:26.1]} 9. Bb3 {[%clk 0:02:48.3]} 9... e6 {[%clk 0:01:53.1]}
10. O-O {[%clk 0:02:39.1]} 10... Be7 {[%clk 0:01:46.5]} 11. f4 {[%clk
0:02:37.2]} 11... Bb7 {[%clk 0:01:42]} 12. Qh5 {[%clk 0:02:34.6]} 12... Kd7
{[%clk 0:01:24.7]} 13. Qxf7 {[%clk 0:02:32.1]} 13... b4 {[%clk 0:01:04.1]} 14.
Bxe6+ {[%clk 0:02:27.9]} 14... Kd8 {[%clk 0:01:02.2]} 15. Nd5 {[%clk 0:02:26.6]}
15... Bxd5 {[%clk 0:01:01.1]} 16. Bxd5 {[%clk 0:02:25.3]} 16... Ra7 {[%clk
0:01:00.9]} 17. Ne6+ {[%clk 0:02:23.7]} 17... Kd7 {[%clk 0:01:01]} 18. Rad1
{[%clk 0:02:17.7]} 18... Nc6 {[%clk 0:00:54.6]} 19. e5 {[%clk 0:02:09.1]} 19...
fxe5 {[%clk 0:00:52.3]} 20. fxe5 {[%clk 0:02:03.9]} 20... Nxe5 {[%clk
0:00:51.4]} 21. Qf5 {[%clk 0:02:00.1]} 21... Rg8 {[%clk 0:00:47.9]} 22. Nc5+
{[%clk 0:01:53.2]} 22... Kd8 {[%clk 0:00:41.6]} 23. Bxg8 {[%clk 0:01:51.3]}
23... Qxc5+ {[%clk 0:00:41.1]} 24. Kh1 {[%clk 0:01:49.3]} 24... Nf3 {[%clk
0:00:30.7]} 25. Qxf3 {[%clk 0:01:47.3]} 1-0

[Event "*** Titled Tuesday Blitz"]
[Site "Chess.com"]
[Date "2020.05.05"]
[Round "4"]
[White "yamalchess"]
[Black "PotapovaM"]
[Result "0-1"]
[WhiteElo "2547"]
[BlackElo "2384"]
[TimeControl "180+1"]
[EndTime "10:38:19 PDT"]
[Termination "PotapovaM won on time"]

1. d4 {[%clk 0:02:55.4]} 1... Nf6 {[%clk 0:02:59.9]} 2. c4 {[%clk 0:02:55.2]}
2... g6 {[%clk 0:02:57.3]} 3. Nc3 {[%clk 0:02:55.1]} 3... d5 {[%clk 0:02:57.9]}
4. Bf4 {[%clk 0:02:48.9]} 4... Bg7 {[%clk 0:02:57.5]} 5. Qa4+ {[%clk 0:02:45]}
5... c6 {[%clk 0:02:52.1]} 6. Bxb8 {[%clk 0:02:16.6]} 6... Rxb8 {[%clk 0:02:53]}
7. Qxa7 {[%clk 0:01:58.8]} 7... Bd7 {[%clk 0:02:48]} 8. cxd5 {[%clk 0:01:55.1]}
8... cxd5 {[%clk 0:02:44.9]} 9. Qa3 {[%clk 0:01:53.5]} 9... O-O {[%clk
0:02:44.3]} 10. e3 {[%clk 0:01:53]} 10... b5 {[%clk 0:02:41.7]} 11. Qb4 {[%clk
0:01:52.6]} 11... Re8 {[%clk 0:02:38.7]} 12. Nf3 {[%clk 0:01:48.4]} 12... e6
{[%clk 0:02:36]} 13. Bd3 {[%clk 0:01:44]} 13... Bf8 {[%clk 0:02:35.8]} 14. Qb3
{[%clk 0:01:44]} 14... b4 {[%clk 0:02:35.8]} 15. Ne2 {[%clk 0:01:43.4]} 15...
Qa5 {[%clk 0:02:35.1]} 16. Bc2 {[%clk 0:01:33.5]} 16... Bb5 {[%clk 0:02:26.3]}
17. Ne5 {[%clk 0:01:21.7]} 17... Rec8 {[%clk 0:02:22.2]} 18. Bd1 {[%clk
0:01:12.3]} 18... Ra8 {[%clk 0:02:18.8]} 19. O-O {[%clk 0:01:07.4]} 19... Ne4
{[%clk 0:02:12.5]} 20. a3 {[%clk 0:00:19.4]} 20... Nd2 {[%clk 0:02:11.5]} 0-1

[Event "*** Titled Tuesday Blitz"]
[Site "Chess.com"]
[Date "2020.05.05"]
[Round "4"]
[White "svilson23"]
[Black "erlesfar"]
[Result "0-1"]
[WhiteElo "2243"]
[BlackElo "2441"]
[TimeControl "180+1"]
[EndTime "10:38:19 PDT"]
[Termination "erlesfar won by resignation"]

1. d4 {[%clk 0:03:00.9]} 1... Nf6 {[%clk 0:02:57.8]} 2. Bg5 {[%clk 0:02:59.7]}
2... Ne4 {[%clk 0:02:56.8]} 3. Bf4 {[%clk 0:02:58.7]} 3... c5 {[%clk 0:02:53.9]}
4. f3 {[%clk 0:02:37.1]} 4... Nf6 {[%clk 0:02:50.1]} 5. dxc5 {[%clk 0:02:32.6]}
5... d5 {[%clk 0:02:43.7]} 6. cxd6 {[%clk 0:02:21.6]} 6... Nc6 {[%clk 0:02:40]}
7. dxe7 {[%clk 0:02:14.8]} 7... Qxe7 {[%clk 0:02:39.1]} 8. e4 {[%clk 0:02:13]}
8... Qb4+ {[%clk 0:02:37.4]} 9. Nd2 {[%clk 0:02:11.3]} 9... Bc5 {[%clk
0:02:25.7]} 10. Rb1 {[%clk 0:01:40.2]} 10... O-O {[%clk 0:02:16.1]} 11. c3
{[%clk 0:01:40.1]} 11... Qb6 {[%clk 0:02:15.2]} 12. Nc4 {[%clk 0:01:35.8]} 12...
Bf2+ {[%clk 0:02:13.7]} 13. Ke2 {[%clk 0:01:32.8]} 13... Qc5 {[%clk 0:02:13.3]}
14. Be3 {[%clk 0:01:13.8]} 14... Bxe3 {[%clk 0:02:10.3]} 15. Nxe3 {[%clk
0:01:14.4]} 15... Be6 {[%clk 0:02:07.9]} 16. Kf2 {[%clk 0:01:01.6]} 16... Rad8
{[%clk 0:01:59.4]} 17. Qc2 {[%clk 0:00:56.7]} 17... Bxa2 {[%clk 0:01:52.1]} 18.
Ra1 {[%clk 0:00:56.2]} 18... Be6 {[%clk 0:01:40.2]} 19. Ne2 {[%clk 0:00:51.3]}
19... Ne5 {[%clk 0:01:36.5]} 20. Nf4 {[%clk 0:00:45.5]} 20... Nfg4+ {[%clk
0:01:32.3]} 21. fxg4 {[%clk 0:00:43.6]} 21... Nxg4+ {[%clk 0:01:31.5]} 22. Ke1
{[%clk 0:00:38.8]} 22... Qxe3+ {[%clk 0:01:28.4]} 0-1

[Event "*** Titled Tuesday Blitz"]
[Site "Chess.com"]
[Date "2020.05.05"]
[Round "4"]
[White "kpio91"]
[Black "dragos420"]
[Result "1-0"]
[WhiteElo "2761"]
[BlackElo "2505"]
[TimeControl "180+1"]
[EndTime "10:38:22 PDT"]
[Termination "kpio91 won by resignation"]

1. d4 {[%clk 0:03:00.9]} 1... Nf6 {[%clk 0:02:59.4]} 2. c4 {[%clk 0:03:01.1]}
2... e6 {[%clk 0:03:00]} 3. Nc3 {[%clk 0:03:01]} 3... Bb4 {[%clk 0:03:00]} 4.
Bd2 {[%clk 0:03:00.3]} 4... O-O {[%clk 0:02:58.8]} 5. Nf3 {[%clk 0:02:59.9]}
5... d5 {[%clk 0:02:57]} 6. e3 {[%clk 0:02:54.4]} 6... b6 {[%clk 0:02:51.6]} 7.
cxd5 {[%clk 0:02:50.6]} 7... exd5 {[%clk 0:02:47.8]} 8. Rc1 {[%clk 0:02:50.5]}
8... c6 {[%clk 0:02:32.1]} 9. Ne5 {[%clk 0:02:37.9]} 9... Bd6 {[%clk 0:02:31.1]}
10. Bd3 {[%clk 0:02:34.8]} 10... Qe7 {[%clk 0:02:04.3]} 11. f4 {[%clk
0:02:29.5]} 11... Nfd7 {[%clk 0:02:01.8]} 12. O-O {[%clk 0:02:09.9]} 12... g6
{[%clk 0:01:35.1]} 13. Qf3 {[%clk 0:01:54.4]} 13... f5 {[%clk 0:01:13.2]} 14.
Nxc6 {[%clk 0:01:51.9]} 14... Nxc6 {[%clk 0:00:59.5]} 15. Qxd5+ {[%clk
0:01:51.4]} 15... Kg7 {[%clk 0:00:47]} 16. Qxc6 {[%clk 0:01:50.9]} 16... Rb8
{[%clk 0:00:44.6]} 17. Nd5 {[%clk 0:01:34]} 17... Qe6 {[%clk 0:00:40.6]} 18. Bb4
{[%clk 0:01:33.9]} 18... Ne5 {[%clk 0:00:27.5]} 19. fxe5 {[%clk 0:01:30.5]} 1-0

[Event "*** Titled Tuesday Blitz"]
[Site "Chess.com"]
[Date "2020.05.05"]
[Round "4"]
[White "UmutErdemGunduz"]
[Black "starworld123"]
[Result "0-1"]
[WhiteElo "2403"]
[BlackElo "2627"]
[TimeControl "180+1"]
[EndTime "10:38:24 PDT"]
[Termination "starworld123 won by resignation"]

1. e4 {[%clk 0:03:00.9]} 1... c5 {[%clk 0:02:59.6]} 2. Nf3 {[%clk 0:03:00.9]}
2... d6 {[%clk 0:03:00.1]} 3. d4 {[%clk 0:03:00.9]} 3... cxd4 {[%clk 0:03:01]}
4. Nxd4 {[%clk 0:03:01.8]} 4... Nf6 {[%clk 0:03:01.9]} 5. f3 {[%clk 0:03:02.1]}
5... e5 {[%clk 0:02:59.6]} 6. Nb3 {[%clk 0:03:02.3]} 6... a5 {[%clk 0:03:00.2]}
7. a4 {[%clk 0:02:51.2]} 7... Nc6 {[%clk 0:02:59]} 8. c4 {[%clk 0:02:49.5]} 8...
Be6 {[%clk 0:02:53.7]} 9. Be3 {[%clk 0:02:48.9]} 9... Rc8 {[%clk 0:02:52.3]} 10.
Be2 {[%clk 0:02:43.5]} 10... Be7 {[%clk 0:02:41]} 11. O-O {[%clk 0:02:43]} 11...
O-O {[%clk 0:02:41.4]} 12. Qd2 {[%clk 0:02:38.8]} 12... Nd7 {[%clk 0:02:31.4]}
13. Rc1 {[%clk 0:02:13.5]} 13... Nc5 {[%clk 0:02:30]} 14. Ra3 {[%clk 0:01:35.1]}
14... Qb6 {[%clk 0:02:21]} 15. Nxc5 {[%clk 0:01:19.5]} 15... dxc5 {[%clk
0:02:21.9]} 16. Nc3 {[%clk 0:01:19.7]} 16... Nd4 {[%clk 0:02:20.1]} 17. Bf1
{[%clk 0:01:16.7]} 17... Nb3 {[%clk 0:02:10.4]} 18. Rxb3 {[%clk 0:01:14]} 18...
Qxb3 {[%clk 0:02:11.3]} 19. Nd5 {[%clk 0:01:14.9]} 19... Bxd5 {[%clk 0:02:04.6]}
20. cxd5 {[%clk 0:01:15.8]} 20... c4 {[%clk 0:01:58]} 21. d6 {[%clk 0:00:36.3]}
21... Bxd6 {[%clk 0:01:57.8]} 22. Rc3 {[%clk 0:00:30.4]} 22... Bb4 {[%clk
0:01:54.3]} 23. Bxc4 {[%clk 0:00:19.8]} 23... Qxc4 {[%clk 0:01:48]} 0-1

[Event "*** Titled Tuesday Blitz"]
[Site "Chess.com"]
[Date "2020.05.05"]
[Round "4"]
[White "EddieMarsalla"]
[Black "Blitzking642"]
[Result "1-0"]
[WhiteElo "2507"]
[BlackElo "2303"]
[TimeControl "180+1"]
[EndTime "10:38:33 PDT"]
[Termination "EddieMarsalla won by resignation"]

1. d4 {[%clk 0:03:00.9]} 1... Nf6 {[%clk 0:02:59.6]} 2. Bg5 {[%clk 0:03:01]}
2... e6 {[%clk 0:02:52]} 3. Nd2 {[%clk 0:03:00.3]} 3... c5 {[%clk 0:02:48.8]} 4.
e3 {[%clk 0:02:58.7]} 4... b6 {[%clk 0:02:46.1]} 5. f4 {[%clk 0:02:58.2]} 5...
Bb7 {[%clk 0:02:45.5]} 6. Ngf3 {[%clk 0:02:58.8]} 6... Be7 {[%clk 0:02:45.2]} 7.
c3 {[%clk 0:02:58.9]} 7... O-O {[%clk 0:02:43]} 8. Bc4 {[%clk 0:02:58.7]} 8...
d6 {[%clk 0:02:29.4]} 9. O-O {[%clk 0:02:58.1]} 9... Nbd7 {[%clk 0:02:29.3]} 10.
Qe2 {[%clk 0:02:58]} 10... Rc8 {[%clk 0:02:27.9]} 11. Rad1 {[%clk 0:02:56.8]}
11... Qc7 {[%clk 0:02:23.5]} 12. Bd3 {[%clk 0:02:54.7]} 12... d5 {[%clk
0:02:17]} 13. Ne5 {[%clk 0:02:54.4]} 13... Rfe8 {[%clk 0:02:06.8]} 14. f5 {[%clk
0:02:48.6]} 14... Ne4 {[%clk 0:01:54.6]} 15. Bxe7 {[%clk 0:02:45]} 15... Rxe7
{[%clk 0:01:47.2]} 16. Nxd7 {[%clk 0:02:40]} 16... Nxd2 {[%clk 0:01:15.3]} 17.
Rxd2 {[%clk 0:02:31.1]} 17... Rxd7 {[%clk 0:01:14]} 18. f6 {[%clk 0:02:30.8]}
18... g6 {[%clk 0:01:11.1]} 19. Qg4 {[%clk 0:02:30.2]} 19... Qd6 {[%clk
0:00:49]} 20. Qg5 {[%clk 0:02:29.2]} 20... cxd4 {[%clk 0:00:41.3]} 21. exd4
{[%clk 0:02:28.2]} 21... Qf8 {[%clk 0:00:40.3]} 22. Rf4 {[%clk 0:02:19.8]} 22...
a6 {[%clk 0:00:31.7]} 23. h4 {[%clk 0:02:17.5]} 23... h6 {[%clk 0:00:26.1]} 24.
Qg3 {[%clk 0:02:16.3]} 24... b5 {[%clk 0:00:24.9]} 25. Rdf2 {[%clk 0:02:10.1]}
25... Kh8 {[%clk 0:00:19.8]} 26. Bxg6 {[%clk 0:02:05.3]} 26... fxg6 {[%clk
0:00:19.5]} 27. f7 {[%clk 0:02:06.2]} 27... Qg7 {[%clk 0:00:15.4]} 28. f8=Q+
{[%clk 0:02:04.3]} 28... Rxf8 {[%clk 0:00:12.5]} 29. Rxf8+ {[%clk 0:02:05.2]}
29... Kh7 {[%clk 0:00:11.8]} 30. Qf4 {[%clk 0:01:57.5]} 1-0